{"text_format":"1","workbook":"xlsx","n_sheets":5,"sheets":["Company","Products","Customers","Data","Invoice Form"],"not_rendered":{"charts":0,"images":0,"macros":1,"external_links":0,"defined_names":7,"comments":1,"pivot_tables":0},"unopened":[],"bounds":{"document_bytes":16777216,"sheet_cells":100000,"rows_first":2000,"rows_last":500,"rows_between":2000,"halvings":0,"cell_chars":16384,"cell_head_chars":4096},"cells_cut":0,"cells_raw":0,"read":"whole","date_system":"1900"}

{"sheet":"Company","index":0,"n_rows":11,"n_cols":2,"rows_kept":11,"cut":false,"hidden":false,"merged":[[1,0,1,7],[0,0,0,7]]}
["Company"]
["ตั้งค่าข้อมูลบริษัทที่จะแสดงบนใบแจ้งหนี้"]
[]
["ชื่อบริษัท","บริษัท ซีดีเน็กซ์ จำกัด (เปลี่ยนชื่อบริษัทตรงนี้)"]
["ที่อยู่บรรทัด 1","99/28 หมู่4 อาคารซอฟท์แวร์พาร์ค ถ.แจ้งวัฒนะ  ต.คลองเกลือ"]
["ที่อยู่บรรทัด 2","อ.ปากเกร็ด จ.นนทบุรี 11120"]
["โทรศัพท์","087-6781333"]
["อีเมล","cdnexcom@gmail.com"]
["เลขประจำตัวผู้เสียภาษี","0105547148848"]
["สาขา","สำนักงานใหญ่"]
["บัญชีธนาคาร/หมายเหตุชำระเงิน","กรุณาชำระเงินตามเงื่อนไขที่ตกลง"]

{"sheet":"Products","index":1,"n_rows":8,"n_cols":5,"rows_kept":8,"cut":false,"hidden":false,"merged":[[1,0,1,7],[0,0,0,7]]}
["Products"]
["ฐานข้อมูลสินค้าและบริการ ใช้ Product ID ในชีต Data"]
[]
["Product ID","สินค้า/บริการ","หน่วย","ราคาต่อหน่วย","VAT %"]
["P001","โปรแกรมพิมพ์ - Version Excel - Save เป็น PDF - Print A4","งาน",1800,7]
["SL095503Bk","แบบฟอร์มสลิปเงินเดือน","กล่อง",3000,7]
["F091105S","แบบฟอร์มใบกำกับภาษีสำเร็จรูป","กล่อง",3200,7]
["WT01","แบบฟอร์มหัก ณ ที่จ่าย","กล่อง",1750,7]

{"sheet":"Customers","index":2,"n_rows":7,"n_cols":7,"rows_kept":7,"cut":false,"hidden":false,"merged":[[1,0,1,7],[0,0,0,7]]}
["Customers"]
["ฐานข้อมูลลูกค้า ใช้ Customer ID ในชีต Data"]
[]
["Customer ID","ชื่อลูกค้า","ที่อยู่","เลขผู้เสียภาษี","สาขา","โทรศัพท์","อีเมล"]
["D001","บริษัท ดีพอ จำกัด","100/1 หมู่ 5 บ้านครัว บ้านหมอ สระบุรี 18270","0105547148848",null,"0814121515","puttobecon@gmail.com"]
["C002","บริษัท ซีดีเน็กซ์ จำกัด","99/28 หมู่4 ต.คลองเกลือ อ.ปากเกร็ด จ.นนทบุรี 11120","0100000000001","สำนักงานใหญ่","02-111-2222","test@example.com"]
["B001","บริษัท เบลนด์ที่หนึ่งเก้าแปดห้า จำกัด","81/123 ถนนนวมินทร์ แขวงคลองกุ่ม เขตบึงกุ่ม กรุงเทพมหานคร","0105567098030","สำนักงานใหญ่","02-000-0000","sales@blend1985.co.th"]

{"sheet":"Data","index":3,"n_rows":8,"n_cols":27,"rows_kept":8,"cut":false,"hidden":false,"merged":[[1,0,1,7],[0,0,0,7]]}
["Data"]
["เก็บข้อมูล invoice แบบหนึ่งบรรทัดต่อหนึ่งสินค้า"]
[]
["Invoice No","Invoice Date","Due Date","Customer ID","Product ID","Description Override","Qty","Unit Price","Discount","VAT %","Line Amount","VAT Amount","Total","Payment Terms","Status","Note","Print Line",null,null,null,null,null,null,null,null,null,"Unique Invoice No"]
["INV20260001","2026-05-11","2026-06-10","D001","P001",null,1,1800,0,null,1800,null,1800,"30 days","unpaid",null,null,null,null,null,null,null,null,null,null,null,"INV20260001"]
["INV20260002","2026-05-12","2026-06-11","C002","F091105S",null,1,3200,0,null,3200,null,3200,"30 days","unpaid",null,null,null,null,null,null,null,null,null,null,null,"INV20260002"]
["INV20260003","2026-05-12","2026-06-11","C002","F091105S",null,1,3200,0,null,3200,null,3200,"30 days","unpaid",null,null,null,null,null,null,null,null,null,null,null,"INV20260003"]
["INV20260003","2026-05-12","2026-06-11","C002","WT01",null,2,1750,300,null,3200,null,3200,"30 days","unpaid"]

{"sheet":"Invoice Form","index":4,"n_rows":38,"n_cols":26,"rows_kept":38,"cut":false,"hidden":false,"merged":[[0,4,0,7],[7,0,7,7],[8,0,8,7],[9,0,9,7],[10,0,10,7],[1,4,1,7]]}
[{"$f":"Company!B4","v":"บริษัท ซีดีเน็กซ์ จำกัด (เปลี่ยนชื่อบริษัทตรงนี้)"},null,null,null,"ต้นฉบับใบกำกับภาษี",null,null,null,null,null,null,null,null,null,null,null,null,null,null,null,null,null,null,null,null,"INV20260010"]
[{"$f":"IF(Company!B5=\"\",\"\",Company!B5)","v":"99/28 หมู่4 อาคารซอฟท์แวร์พาร์ค ถ.แจ้งวัฒนะ  ต.คลองเกลือ"},null,null,null,"Tax Invoice Original",null,null,null,null,null,null,null,null,null,null,null,null,null,null,null,null,null,null,null,null,false]
[{"$f":"IF(Company!B6=\"\",\"\",Company!B6)","v":"อ.ปากเกร็ด จ.นนทบุรี 11120"}]
[{"$f":"IF(Company!B7=\"\",\"\",\"โทร. \"&Company!B7)&IF(Company!B8=\"\",\"\",\"Email: \"&Company!B8)","v":"โทร. 087-6781333Email: cdnexcom@gmail.com"},null,null,null,null,"เลขที่",null,"INV20260003"]
[{"$f":"IF(Company!B9=\"\",\"\",\"Tax ID: \"&Company!B9)","v":"Tax ID: 0105547148848"},null,null,null,null,"วันที่",null,"2026-05-12"]
[null,null,null,null,null,"ครบกำหนด",null,"2026-06-11"]
[null,null,null,null,null,"เงื่อนไข",null,"30 days"]
["ข้อมูลลูกค้า"]
["ลูกค้า: บริษัท ซีดีเน็กซ์ จำกัด"]
["ที่อยู่: 99/28 หมู่4 ต.คลองเกลือ อ.ปากเกร็ด จ.นนทบุรี 11120"]
["เลขผู้เสียภาษี: 0100000000001    สาขา: สำนักงานใหญ่"]
[]
[]
["#","รายการ","จำนวน","หน่วย","ราคา/หน่วย","ส่วนลด",null,"รวม"]
[1,"แบบฟอร์มใบกำกับภาษีสำเร็จรูป",1,"กล่อง",3200,0,null,{"$f":"(C15*E15)-F15","v":3200}]
[2,"แบบฟอร์มหัก ณ ที่จ่าย",2,"กล่อง",1750,300,null,{"$f":"(C16*E16)-F16","v":3200}]
[null,null,null,null,null,null,null,{"$f":"(C17*E17)-F17","v":0}]
[null,null,null,null,null,null,null,{"$f":"(C18*E18)-F18","v":0}]
[null,null,null,null,null,null,null,{"$f":"(C19*E19)-F19","v":0}]
[null,null,null,null,null,null,null,{"$f":"(C20*E20)-F20","v":0}]
[null,null,null,null,null,null,null,{"$f":"(C21*E21)-F21","v":0}]
[null,null,null,null,null,null,null,{"$f":"(C22*E22)-F22","v":0}]
[null,null,null,null,null,null,null,{"$f":"(C23*E23)-F23","v":0}]
[null,null,null,null,null,null,null,{"$f":"(C24*E24)-F24","v":0}]
[null,null,null,null,null,null,null,{"$f":"(C25*E25)-F25","v":0}]
[null,null,null,null,null,null,null,{"$f":"(C26*E26)-F26","v":0}]
[null,null,null,null,null,null,null,{"$f":"(C27*E27)-F27","v":0}]
[null,null,null,null,null,null,null,{"$f":"(C28*E28)-F28","v":0}]
[null,null,null,null,null,null,null,{"$f":"(C29*E29)-F29","v":0}]
[null,null,null,null,null,null,null,{"$f":"(C30*E30)-F30","v":0}]
[]
[null,null,null,null,null,"ยอดรวม",null,{"$f":"SUM(H15:H30)","v":6400}]
[null,null,null,null,null,"ส่วนลดรวม"]
[null,null,null,null,null,"ยอดก่อนภาษี"]
[null,null,null,null,null,"ภาษี",7.0000000000000007E-2,{"$f":"H32*G35","v":448.00000000000006}]
[{"$f":"BAHTTEXT(H36)","v":"หกพันแปดร้อยสี่สิบแปดบาทถ้วน"},null,null,null,null,"ยอดรวมสุทธิ",null,{"$f":"H32+H35","v":6848}]
[]
["หมายเหตุ"]